bitfinex/quotes_BTCUSD_20250314
["timestamp","ask_amount","ask_price","bid_price","bid_amount"]
[1741965173162,0.248303,84574.0,84572.0,0.00012368]
[1741965173386,0.011824,84573.0,84572.0,0.00012368]
[1741965173609,0.011822,84587.0,84572.0,0.00512368]
[1741965173841,0.236448,84586.0,84573.0,0.00118223]
[1741965174059,0.011823,84576.0,84572.0,0.00512368]
[1741965174290,0.011824,84573.0,84572.0,0.00512368]
[1741965174761,0.012824,84573.0,84572.0,0.01012368]
[1741965175987,0.012824,84573.0,84572.0,6.8e-07]
[1741965176250,0.2366,84531.0,84518.0,0.0774]
[1741965176500,0.236586,84536.0,84529.0,0.02398873]
[1741965176736,0.01183,84527.0,84518.0,0.02433255]
[1741965176936,0.236596,84532.0,84519.0,0.16154292]
[1741965177066,0.236596,84532.0,84526.0,0.02411436]
[1741965177067,0.236612,84527.0,84526.0,0.02411436]
[1741965177273,0.236606,84529.0,84526.0,0.02411436]
[1741965177495,0.236609,84528.0,84526.0,0.02452597]
[1741965177676,0.011829,84531.0,84526.0,0.02452597]
[1741965177874,0.248431,84531.0,84526.0,0.02452597]
[1741965178108,0.248428,84531.0,84526.0,0.02452597]
[1741965178335,0.2366,84531.0,84526.0,0.02452597]
[1741965178556,0.011828,84538.0,84526.0,0.02452597]
[1741965178784,0.001,84529.0,84527.0,0.00118287]
[1741965179022,0.001,84529.0,84527.0,1.5]
[1741965179255,0.236594,84533.0,84527.0,1.5]
[1741965179256,4e-05,84531.0,84527.0,1.5]
[1741965179485,4e-05,84531.0,84526.0,0.00041161]
[1741965179486,0.24844,84527.0,84526.0,0.00041161]
[1741965180950,0.65717602,84527.0,84526.0,0.00141161]
[1741965181154,0.65717602,84527.0,84526.0,6.1e-07]
[1741965181155,0.77675105,84527.0,84526.0,6.1e-07]
[1741965181385,0.248484,84512.0,84511.0,0.0008]
[1741965181590,0.248484,84512.0,84511.0,0.00092321]
[1741965182234,0.26704692,84512.0,84511.0,0.00092321]
[1741965182996,0.236641,84531.0,84511.0,0.00092321]
[1741965183197,4e-05,84531.0,84517.0,0.011831]
[1741965183402,0.248452,84523.0,84511.0,0.00092321]
[1741965183603,0.236636,84518.0,84511.0,0.00092321]
[1741965183780,0.011831,84520.0,84511.0,0.00092321]
[1741965183977,0.011831,84518.0,84514.0,0.02412669]
[1741965184222,0.248428,84532.0,84514.0,0.02412669]
[1741965184439,0.00104,84531.0,84515.0,0.00118314]
[1741965184603,0.00104,84531.0,84516.0,0.236641]
[1741965184817,0.00104,84531.0,84517.0,0.00118293]
[1741965184981,4e-05,84531.0,84514.0,0.02412669]
[1741965185184,0.011832,84512.0,84511.0,0.00392321]
[1741965185401,0.001,84518.0,84511.0,0.00092321]
[1741965185600,0.001,84518.0,84512.0,0.00118307]
[1741965185825,0.236627,84522.0,84515.0,0.002]
[1741965186027,0.011831,84521.0,84511.0,0.00092321]
[1741965186233,0.236651,84513.0,84511.0,0.00092321]
[1741965186478,0.001,84512.0,84511.0,0.00292321]
[1741965186687,0.012832,84512.0,84511.0,0.00292321]
[1741965187109,0.001,84512.0,84511.0,0.00292321]
[1741965187552,0.001,84512.0,84511.0,0.02646504]
[1741965187778,0.01183,84528.0,84511.0,0.02446504]
[1741965188000,0.011831,84522.0,84511.0,0.02446504]
[1741965188200,0.236629,84521.0,84515.0,0.004]
[1741965188423,0.011832,84515.0,84511.0,0.02946504]
[1741965188639,0.011832,84512.0,84511.0,0.00592321]
[1741965188850,0.012832,84512.0,84511.0,0.00192321]
[1741965189055,0.012832,84512.0,84511.0,0.00392321]
[1741965189273,0.03257714,84512.0,84511.0,0.00392321]
[1741965189488,0.03139515,84512.0,84511.0,0.00492321]
[1741965189695,0.44031316,84512.0,84511.0,0.00392321]
[1741965189917,0.43913117,84512.0,84511.0,0.00392321]
[1741965190589,0.43913117,84512.0,84511.0,0.00092321]
[1741965190795,0.43913117,84512.0,84511.0,0.00592321]
[1741965190967,0.44013117,84512.0,84511.0,2.1e-07]
[1741965191238,0.44013117,84512.0,84503.0,0.0003386]
[1741965191239,0.248508,84504.0,84503.0,8.1e-07]
[1741965191443,0.248508,84504.0,84487.0,0.0003386]
[1741965191444,0.248546,84491.0,84490.0,6.1e-07]
[1741965191598,0.248546,84491.0,84481.0,2.1e-07]
[1741965191599,0.011836,84485.0,84481.0,2.1e-07]
[1741965191877,0.248572,84482.0,84481.0,2.1e-07]
[1741965192041,0.65730802,84482.0,84481.0,2.1e-07]
[1741965192391,0.65730802,84482.0,84481.0,0.00012344]
[1741965192592,0.65730802,84482.0,84466.0,0.0003386]
[1741965192593,0.011838,84472.0,84466.0,6.4e-07]
[1741965192799,0.248616,84467.0,84466.0,6.4e-07]
[1741965193029,0.248616,84467.0,84438.0,0.05742653]
[1741965193030,0.236854,84440.0,84438.0,0.05742653]
[1741965193238,0.011843,84433.0,84431.0,5.3e-07]
[1741965193442,0.24872,84432.0,84431.0,5.3e-07]
[1741965193932,0.24872,84432.0,84431.0,0.00041154]
[1741965194938,0.24872,84432.0,84431.0,5.4e-07]
[1741965195492,0.24876,84432.0,84431.0,5.4e-07]
[1741965195892,0.24872,84432.0,84431.0,5.4e-07]
[1741965197154,0.011842,84443.0,84431.0,5.4e-07]
[1741965197367,0.01858086,84441.0,84431.0,0.00059501]
[1741965197579,0.01858086,84441.0,84433.0,0.3]
[1741965197779,0.236825,84451.0,84434.0,0.0005939]
[1741965198057,0.236815,84454.0,84434.0,0.0005939]
[1741965198262,0.011839,84460.0,84444.0,0.0236312]
[1741965198468,0.011837,84475.0,84451.0,0.011841]
[1741965198675,0.011839,84466.0,84452.0,0.0005935]
[1741965198887,0.011838,84471.0,84465.0,1.5]
[1741965198888,0.23677,84470.0,84465.0,1.5]
[1741965199095,0.236742,84480.0,84466.0,0.16408]
[1741965199328,0.236746,84479.0,84467.0,0.00059313]
[1741965199535,0.011836,84486.0,84467.0,0.00059313]
[1741965199740,0.011836,84485.0,84470.0,1.5]
[1741965199944,0.236742,84481.0,84471.0,0.0005929]
[1741965200153,0.011837,84480.0,84470.0,1.5]
[1741965200358,0.00041133,84485.0,84470.0,1.5]
[1741965200359,0.248605,84471.0,84470.0,1.5]
[1741965200565,0.248605,84471.0,84470.0,1.66396]
[1741965201093,0.236738,84482.0,84470.0,1.66396]
[1741965201295,0.011837,84475.0,84470.0,1.66396]
[1741965201495,0.236762,84474.0,84470.0,1.66396]
[1741965201695,0.248604,84472.0,84470.0,1.66396]
[1741965201969,0.248604,84472.0,84464.0,0.75172]
[1741965201970,0.248623,84465.0,84464.0,0.75172]
[1741965202309,0.236783,84466.0,84464.0,0.75172]
[1741965202510,0.011839,84465.0,84464.0,0.75172]
[1741965203326,0.248619,84470.0,84439.0,0.3]
[1741965203327,0.236829,84449.0,84444.0,0.16364]
[1741965203555,0.01184,84458.0,84444.0,0.16364]
[1741965203759,0.011842,84445.0,84444.0,0.16364]
[1741965204163,0.011843,84434.0,84431.0,0.05126762]
[1741965204375,0.248726,84430.0,84412.0,0.0783]
[1741965204583,0.248726,84430.0,84427.0,0.16344]
[1741965204781,0.011843,84434.0,84429.0,0.75218233]
[1741965205140,0.236869,84435.0,84429.0,0.75218233]
[1741965205141,0.248712,84435.0,84429.0,0.75218233]
[1741965205454,0.236869,84435.0,84429.0,0.75218233]
[1741965205682,0.248726,84430.0,84429.0,0.75218233]
[1741965206596,0.248726,84430.0,84429.0,0.00046233]
[1741965206802,0.236879,84431.0,84429.0,0.00046233]
[1741965207021,0.011844,84430.0,84429.0,0.00046233]
[1741965207223,0.236868,84436.0,84429.0,0.00046233]
[1741965207423,0.0185811,84446.0,84432.0,0.011843]
[1741965207631,0.0001699,84465.0,84434.0,0.011843]
[1741965207632,0.236824,84451.0,84434.0,0.011843]
[1741965207838,0.236824,84451.0,84430.0,0.11957503]
[1741965207839,0.011838,84470.0,84450.0,0.011841]
[1741965208047,0.01184,84458.0,84451.0,0.163]
[1741965208243,0.011841,84451.0,84450.0,0.02420118]
[1741965208451,0.236823,84452.0,84450.0,0.18716118]
[1741965208653,0.236813,84455.0,84450.0,0.02420118]
[1741965209013,0.236816,84454.0,84452.0,1.5]
[1741965209215,0.01184,84453.0,84452.0,1.5]
[1741965209352,0.01184,84453.0,84452.0,1.66284]
[1741965209822,0.011839,84464.0,84452.0,1.5]
[1741965210084,0.0120089,84465.0,84453.0,0.0005936]
[1741965210287,0.248626,84464.0,84453.0,0.0005936]
[1741965210487,0.236791,84463.0,84453.0,0.0005936]
[1741965210688,0.0001699,84465.0,84454.0,0.236813]
[1741965210904,0.0001699,84465.0,84457.0,0.01184]
[1741965211108,0.0001699,84465.0,84453.0,0.00059311]
[1741965211313,0.0001699,84465.0,84458.0,1.5]
[1741965211530,0.2368,84460.0,84458.0,1.5]
[1741965211734,0.01184,84459.0,84458.0,1.5]
[1741965211933,0.01184,84459.0,84458.0,1.6626]
[1741965212135,0.01184,84459.0,84458.0,0.1626]
[1741965212339,4e-05,84475.0,84458.0,0.1626]
[1741965212553,0.011839,84460.0,84459.0,1.5]
[1741965212717,0.248638,84460.0,84459.0,1.5]
[1741965213349,0.011842,84443.0,84439.0,0.0152276]
[1741965213559,0.236849,84442.0,84440.0,0.16256]
[1741965213743,0.011841,84449.0,84440.0,0.16256]
[1741965213744,0.011841,84450.0,84446.0,0.035604]
[1741965214108,0.236818,84453.0,84446.0,0.035604]
[1741965214308,0.236818,84453.0,84447.0,0.16244]
[1741965214429,0.01184,84458.0,84447.0,0.16244]
[1741965214635,0.01184,84457.0,84448.0,0.00059363]
[1741965214878,0.236819,84453.0,84448.0,0.00059363]
[1741965215099,0.236821,84452.0,84447.0,0.16244]
[1741965215434,0.011839,84463.0,84448.0,0.00059383]
[1741965215635,0.236802,84459.0,84449.0,0.00059349]
[1741965215806,0.01184,84456.0,84449.0,0.00059349]
[1741965216039,0.236828,84450.0,84447.0,0.16244]
[1741965216244,0.011841,84448.0,84447.0,0.16244]
[1741965216449,0.248654,84455.0,84447.0,0.16244]
[1741965216640,0.011841,84451.0,84447.0,0.16244]
[1741965217003,0.248671,84449.0,84447.0,0.16244]
[1741965217444,0.011841,84448.0,84447.0,0.16244]
[1741965217670,0.011841,84448.0,84439.0,0.00012333]
[1741965217671,0.011842,84440.0,84439.0,0.00012333]
[1741965219072,0.236851,84442.0,84439.0,0.00012333]
[1741965219275,0.236849,84442.0,84439.0,0.00012333]
[1741965219403,0.011842,84440.0,84439.0,0.00012333]
[1741965220087,0.248694,84441.0,84439.0,0.00012333]
[1741965220262,0.011842,84440.0,84439.0,0.00012333]
[1741965221438,0.011845,84420.0,84410.0,0.00902848]
[1741965221645,0.248781,84411.0,84410.0,0.00915188]
[1741965222051,0.248781,84411.0,84410.0,0.0001234]
[1741965225823,0.236917,84418.0,84410.0,0.0001234]
[1741965226042,1.184092,84453.0,84410.0,0.0001234]
[1741965226043,0.011843,84435.0,84414.0,0.011846]
[1741965226241,0.011845,84423.0,84412.0,0.0005947]
[1741965226415,0.011845,84417.0,84410.0,0.0001234]
[1741965226575,0.236907,84422.0,84410.0,0.0119694]
[1741965226782,0.236907,84422.0,84414.0,0.236926]
[1741965226983,0.236907,84422.0,84415.0,0.236923]
[1741965227185,0.236908,84421.0,84412.0,0.236931]
[1741965227534,0.236913,84419.0,84416.0,0.02328084]
[1741965227741,0.011844,84426.0,84417.0,0.236917]
[1741965227943,0.236877,84432.0,84420.0,0.011845]
[1741965228151,0.011843,84438.0,84421.0,0.16191475]
[1741965228393,0.248693,84441.0,84432.0,0.236875]
[1741965228611,0.0001699,84461.0,84441.0,0.011842]
[1741965228814,0.0001699,84461.0,84442.0,0.16132]
[1741965228815,0.011841,84447.0,84442.0,0.16132]
[1741965229028,0.248685,84445.0,84444.0,1.5]
[1741965229694,0.248685,84445.0,84444.0,1.66112]
[1741965230100,0.248685,84445.0,84444.0,1.5]
[1741965230603,0.248699,84439.0,84438.0,0.16112]
[1741965231778,0.248737,84426.0,84425.0,0.0001234]
[1741965231977,0.248737,84426.0,84425.0,0.1609634]
[1741965233343,0.65747302,84426.0,84425.0,0.0001234]
[1741965233968,0.67605586,84426.0,84425.0,0.0001234]
[1741965234307,0.65747302,84426.0,84425.0,0.0001234]
[1741965234788,0.65747302,84426.0,84425.0,4e-07]
[1741965237364,0.72345635,84426.0,84425.0,4e-07]
[1741965237702,0.72325977,84426.0,84425.0,4e-07]
[1741965237905,1.1428348,84426.0,84425.0,4e-07]
[1741965238519,1.02325977,84426.0,84425.0,4e-07]
[1741965239331,0.72325977,84426.0,84425.0,4e-07]
[1741965239742,0.67585977,84426.0,84425.0,4e-07]
[1741965241205,0.64562902,84426.0,84425.0,4e-07]
[1741965241437,0.65747302,84426.0,84425.0,4e-07]
[1741965241659,0.65751302,84426.0,84425.0,4e-07]
[1741965243751,0.248777,84426.0,84425.0,4e-07]
[1741965244526,0.236933,84426.0,84425.0,4e-07]
[1741965244936,4e-05,84426.0,84425.0,4e-07]
[1741965245166,0.236933,84426.0,84425.0,4e-07]
[1741965245759,4e-05,84426.0,84425.0,0.2487404]
[1741965246138,0.236865,84436.0,84431.0,0.236878]
[1741965246441,0.236863,84437.0,84432.0,0.236875]
[1741965246645,0.236865,84436.0,84435.0,0.02351144]
[1741965247205,0.236863,84437.0,84435.0,0.02351144]
[1741965247561,0.236863,84437.0,84428.0,0.236887]
[1741965247562,0.011843,84432.0,84425.0,4e-07]
[1741965247738,0.42057802,84444.0,84428.0,0.02423501]
[1741965247956,0.011841,84446.0,84430.0,0.01454085]
[1741965248144,0.011842,84441.0,84428.0,0.02423501]
[1741965248340,4e-05,84445.0,84431.0,0.011843]
[1741965248542,4e-05,84445.0,84443.0,0.236846]
[1741965248779,4e-05,84445.0,84444.0,0.15952]
[1741965248985,4e-05,84445.0,84444.0,1.65952]
[1741965248986,0.011882,84445.0,84444.0,1.65952]
[1741965249183,4e-05,84445.0,84444.0,1.65952]
[1741965250883,0.011882,84445.0,84444.0,1.65928]
[1741965251058,0.011882,84445.0,84420.0,0.011845]
[1741965251059,0.011843,84436.0,84429.0,0.236885]
[1741965251269,0.011843,84435.0,84417.0,0.011845]
[1741965251468,0.236874,84434.0,84426.0,0.15912]
[1741965251697,0.23689,84428.0,84426.0,0.15912]
[1741965251902,0.236873,84434.0,84426.0,0.15912]
[1741965252123,0.40873602,84457.0,84431.0,0.011843]
[1741965252346,0.011842,84443.0,84437.0,0.236861]
[1741965252574,0.236857,84439.0,84432.0,0.23746816]
[1741965252753,0.236856,84440.0,84433.0,0.236874]
[1741965252902,0.011842,84439.0,84431.0,0.75204]
[1741965253250,0.248701,84439.0,84433.0,0.236873]
[1741965253457,0.236853,84441.0,84436.0,0.236865]
[1741965253651,0.011841,84449.0,84431.0,0.75204]
[1741965253812,0.236852,84441.0,84434.0,0.236869]
[1741965254018,0.236852,84441.0,84435.0,0.236866]
[1741965254220,0.236844,84444.0,84435.0,0.236866]
[1741965254418,8e-05,84445.0,84443.0,0.236845]
[1741965254780,0.248762,84445.0,84444.0,0.1588]
[1741965255049,8e-05,84445.0,84444.0,0.15868]
[1741965255253,0.23692,84445.0,84444.0,0.15868]
[1741965255470,0.248762,84445.0,84444.0,0.15868]
[1741965255880,0.011843,84432.0,84431.0,0.75204]
[1741965256018,0.24872,84432.0,84431.0,0.91044]
[1741965256617,0.236877,84432.0,84431.0,0.91044]
[1741965256853,0.011843,84432.0,84431.0,0.91044]
[1741965257066,0.24872,84432.0,84431.0,0.91044]
[1741965257309,0.20984015,84433.0,84431.0,0.91044]
[1741965257511,0.236877,84432.0,84431.0,0.91044]
[1741965257920,0.00034,84439.0,84431.0,0.91044]
[1741965258176,0.00034,84439.0,84432.0,0.00059443]
[1741965258318,0.00034,84439.0,84438.0,0.23686]
[1741965258520,0.00034,84439.0,84438.0,0.23745426]
[1741965258905,0.00012,84445.0,84444.0,0.248685]
[1741965259146,0.0001699,84465.0,84445.0,0.248679]
[1741965259400,0.0001699,84465.0,84460.0,0.536798]
[1741965259637,0.0001699,84465.0,84464.0,0.548626]
[1741965259853,0.0001699,84465.0,84464.0,1.43470188]
[1741965260121,0.0001699,84465.0,84464.0,2.93470188]
[1741965260351,9e-07,84465.0,84464.0,2.93470188]
[1741965260671,0.00041213,84465.0,84464.0,2.93470188]
[1741965261078,0.00041213,84465.0,84464.0,2.9436793]
[1741965262090,0.00041213,84465.0,84464.0,3.1016393]
[1741965262490,0.00041213,84465.0,84464.0,2.96732684]
[1741965262695,0.00041213,84465.0,84464.0,3.12520684]
[1741965263121,0.00041213,84465.0,84464.0,2.28468496]
[1741965263323,0.00041213,84465.0,84464.0,2.57389899]
[1741965263498,0.00041213,84465.0,84464.0,2.44248496]
[1741965263840,0.00041213,84465.0,84464.0,2.45432396]
[1741965264073,0.00041213,84465.0,84464.0,2.57389899]
[1741965264273,0.00041213,84465.0,84464.0,2.57660084]
[1741965264548,0.00041213,84465.0,84464.0,2.45432396]
[1741965264992,0.00041213,84465.0,84464.0,2.28468496]
[1741965265194,0.00041213,84465.0,84464.0,1.17887196]
[1741965265195,0.00045213,84465.0,84464.0,1.17887196]
[1741965266406,0.00045213,84465.0,84464.0,1.19071096]
[1741965266808,0.00045213,84465.0,84464.0,1.17887196]
[1741965267453,0.00045213,84465.0,84464.0,1.19071096]
[1741965268014,0.00045213,84465.0,84464.0,1.17887196]
[1741965268418,0.24907513,84465.0,84464.0,0.02374754]
[1741965268783,0.01229113,84465.0,84449.0,0.236829]
[1741965268982,0.01184,84458.0,84450.0,0.15704]
[1741965269273,0.01184,84455.0,84450.0,0.15704]
[1741965269563,0.248655,84454.0,84450.0,0.393865]
[1741965269767,0.01184,84456.0,84452.0,0.23682]
[1741965269971,0.236819,84453.0,84450.0,0.15704]
[1741965270175,0.01184,84456.0,84450.0,0.15704]
[1741965270176,0.248651,84456.0,84450.0,0.15704]
[1741965270407,0.01184,84458.0,84450.0,0.15704]
[1741965270607,0.236801,84459.0,84453.0,1.5]
[1741965270816,0.236801,84459.0,84455.0,0.23681]
[1741965271010,0.236796,84461.0,84458.0,0.236802]
[1741965271340,0.01184,84454.0,84453.0,1.5]
[1741965271749,0.248654,84455.0,84453.0,1.5]
[1741965271960,0.248654,84455.0,84446.0,0.988596]
[1741965271962,0.011841,84447.0,84446.0,0.75176]
[1741965272163,0.24872,84432.0,84431.0,0.0003398]
[1741965272366,0.24872,84432.0,84431.0,0.1568998]
[1741965272587,0.236872,84434.0,84431.0,0.1568998]
[1741965272786,0.248677,84447.0,84431.0,0.15749438]
[1741965272999,0.011841,84446.0,84436.0,0.236864]
[1741965273203,0.236839,84446.0,84441.0,0.23685]
[1741965273408,0.236855,84440.0,84437.0,0.236861]
[1741965273561,0.011842,84442.0,84439.0,0.236856]
[1741965273967,0.00012333,84446.0,84445.0,0.23684]
[1741965274550,0.00012333,84446.0,84445.0,0.2492759]
[1741965274756,0.00012333,84446.0,84445.0,0.36825703]
[1741965274956,0.00012333,84446.0,84445.0,0.38279788]
[1741965275669,0.011837,84476.0,84445.0,0.38279788]
[1741965275670,0.38047173,84480.0,84455.0,0.01184]
[1741965275881,0.011838,84473.0,84469.0,0.236772]
[1741965276080,0.011838,84473.0,84457.0,0.01184]
[1741965276081,0.236771,84470.0,84467.0,0.236777]
[1741965276321,0.236769,84471.0,84467.0,0.236777]
[1741965276517,0.236771,84470.0,84465.0,0.236782]
[1741965276687,0.236776,84468.0,84462.0,0.236792]
[1741965276913,0.248619,84467.0,84462.0,0.236792]
[1741965277115,0.236782,84466.0,84462.0,0.236792]
[1741965277318,0.236784,84465.0,84461.0,0.236793]
[1741965277517,0.236774,84469.0,84458.0,0.236802]
[1741965277518,0.248603,84472.0,84459.0,0.236801]
[1741965277718,0.01224968,84475.0,84459.0,0.236801]
[1741965277887,0.00041268,84475.0,84474.0,0.236759]
[1741965278090,0.24900568,84475.0,84474.0,0.15604]
[1741965279421,0.00041268,84475.0,84474.0,0.15604]
[1741965279623,0.00041268,84475.0,84474.0,0.392799]
[1741965279749,0.00041268,84475.0,84474.0,0.15604]
[1741965280184,0.23716868,84475.0,84474.0,0.15604]
[1741965280371,0.24900568,84475.0,84474.0,0.15604]
[1741965280978,0.248605,84471.0,84470.0,1.5]
[1741965281178,0.248605,84471.0,84470.0,1.65564]
[1741965281495,0.248646,84457.0,84453.0,0.0003398]
[1741965281653,0.248646,84457.0,84456.0,0.90744]
[1741965282124,0.011839,84465.0,84456.0,0.90744]
[1741965282125,0.011838,84468.0,84456.0,0.9222617]
[1741965282327,0.011837,84474.0,84457.0,0.00059346]
[1741965282440,0.011836,84481.0,84470.0,0.23677]
[1741965282641,0.011836,84481.0,84463.0,0.011839]
[1741965282642,0.011837,84476.0,84463.0,0.011839]
[1741965282954,0.23716868,84475.0,84472.0,0.236764]
[1741965283168,0.00041268,84475.0,84474.0,0.236759]
[1741965283368,0.00041268,84475.0,84473.0,0.392401]
[1741965283369,0.24900568,84475.0,84473.0,0.15564]
[1741965283519,0.236759,84474.0,84473.0,0.15564]
[1741965284125,0.00041268,84475.0,84473.0,0.15564]
[1741965284341,0.236759,84474.0,84473.0,0.15564]
[1741965284544,0.236759,84474.0,84473.0,0.15521267]
[1741965285284,0.24900568,84475.0,84473.0,0.15521267]
[1741965285405,0.00041268,84475.0,84473.0,0.17871638]
[1741965285839,0.236759,84474.0,84473.0,0.17871638]
[1741965286035,0.00041268,84475.0,84473.0,0.41547838]
[1741965286236,0.00041268,84475.0,84474.0,0.236759]
[1741965286490,0.23716868,84475.0,84473.0,0.17871638]
[1741965286666,0.236759,84474.0,84473.0,0.17871638]
[1741965286883,0.24862,84466.0,84465.0,0.75176]
[1741965287117,0.236781,84466.0,84465.0,0.90672]
[1741965287322,0.23678,84467.0,84465.0,0.90672]
[1741965287526,0.236781,84466.0,84465.0,0.75176]
[1741965287699,0.24862,84466.0,84465.0,0.93054673]
[1741965287904,0.248613,84469.0,84465.0,0.93062673]
[1741965288112,0.248608,84470.0,84466.0,0.155]
[1741965288253,0.248616,84467.0,84466.0,0.155]
[1741965288685,0.011838,84472.0,84466.0,0.155]
[1741965288886,0.236778,84467.0,84466.0,0.155]
[1741965289103,0.236778,84467.0,84466.0,1.655]
[1741965289318,0.248616,84467.0,84466.0,1.655]
[1741965290317,0.248616,84467.0,84466.0,1.6546]
[1741965290528,0.236778,84467.0,84466.0,1.6546]
[1741965291098,0.248616,84467.0,84466.0,1.6546]
[1741965291308,0.248656,84467.0,84466.0,1.6546]
[1741965291522,0.248656,84467.0,84466.0,1.5]
[1741965291717,0.248646,84457.0,84456.0,0.0148217]
[1741965292074,0.248649,84456.0,84455.0,0.02406604]
[1741965292723,0.248655,84454.0,84453.0,0.0003398]
[1741965294687,0.26723022,84454.0,84453.0,0.0003398]
[1741965296172,0.26723022,84454.0,84453.0,8e-07]
[1741965296173,0.64770195,84454.0,84453.0,8e-07]
[1741965296417,0.62912673,84454.0,84453.0,8e-07]
[1741965299230,0.64770251,84454.0,84453.0,8e-07]
[1741965300487,0.63586251,84454.0,84453.0,0.1532408]
[1741965300718,0.0464,84473.0,84453.0,1.9018988]
[1741965300926,0.236784,84465.0,84462.0,0.236792]
[1741965301072,0.236788,84464.0,84460.0,0.236795]
[1741965301248,4e-05,84467.0,84466.0,0.236781]
[1741965301618,0.011839,84463.0,84453.0,0.91392407]
[1741965301830,4e-05,84467.0,84464.0,0.236784]
[1741965302035,4e-05,84467.0,84462.0,0.02409249]
[1741965302231,0.011839,84466.0,84462.0,0.02409249]
[1741965302434,0.236789,84464.0,84462.0,0.02409249]
[1741965302657,4e-05,84467.0,84462.0,0.02409249]
[1741965302958,4e-05,84467.0,84464.0,0.236786]
[1741965303150,4e-05,84467.0,84466.0,0.236781]
[1741965303943,4e-05,84467.0,84466.0,0.23737418]
[1741965304165,4e-05,84467.0,84466.0,0.24921318]
[1741965304368,4e-05,84467.0,84466.0,0.24862]
[1741965305408,4e-05,84467.0,84466.0,0.38273588]
[1741965306435,0.00058258,84475.0,84474.0,0.236759]
[1741965306634,0.00058258,84475.0,84474.0,0.389599]
[1741965306837,0.00058258,84475.0,84474.0,0.401436]
[1741965307040,0.00058258,84475.0,84474.0,0.389599]
[1741965308031,0.00058258,84475.0,84474.0,0.40349293]
[1741965308597,0.06108258,84475.0,84474.0,0.40349293]
[1741965308805,0.06108258,84475.0,84474.0,0.41532993]
[1741965309001,0.0101979,84475.0,84474.0,2.34944581]
[1741965309203,4.001e-05,84475.0,84474.0,2.34944581]
[1741965309848,0.236685,84501.0,84474.0,2.34944581]
[1741965309849,0.0462,84520.0,84474.0,2.10084981]
[1741965310049,0.00046322,84511.0,84510.0,0.24849]
[1741965310353,0.01183,84526.0,84513.0,0.011832]
[1741965310556,0.0001697,84527.0,84522.0,0.236622]
[1741965310760,0.236622,84523.0,84514.0,0.236644]
[1741965310969,0.012169,84524.0,84474.0,0.01378647]
[1741965310970,0.011832,84511.0,84510.0,0.77496284]
[1741965311181,0.011832,84511.0,84510.0,0.75176]
[1741965311377,0.011834,84499.0,84492.0,0.236707]
[1741965311582,0.236683,84501.0,84497.0,0.236693]
[1741965311792,0.011833,84504.0,84498.0,0.02329774]
[1741965312029,0.236685,84501.0,84498.0,0.02329774]
[1741965312235,0.236687,84500.0,84498.0,0.02329774]
[1741965312459,0.248515,84502.0,84498.0,0.02329774]
[1741965312661,0.236678,84503.0,84500.0,0.236685]
[1741965312864,0.236684,84501.0,84498.0,0.02329774]
[1741965313072,0.236658,84510.0,84499.0,0.15304]
[1741965313296,0.23667,84506.0,84503.0,0.236676]
[1741965313498,0.011833,84507.0,84503.0,0.236676]
[1741965313672,0.0304361,84511.0,84499.0,0.153]
[1741965313872,4e-05,84511.0,84509.0,0.236661]
[1741965315006,0.248464,84519.0,84505.0,0.248502]
[1741965315194,0.23664,84517.0,84514.0,0.236646]
[1741965315353,0.24839884,84521.0,84515.0,0.15272]
[1741965315554,0.011831,84520.0,84515.0,0.15272]
[1741965315759,0.011831,84520.0,84516.0,0.236641]
[1741965315955,0.236633,84519.0,84515.0,0.15272]
[1741965316157,0.236636,84518.0,84515.0,0.15272]
[1741965316504,0.236639,84517.0,84515.0,0.15272]
[1741965316828,0.236631,84520.0,84516.0,0.26028971]
[1741965317000,0.236633,84519.0,84516.0,0.02364871]
[1741965317177,0.248467,84518.0,84516.0,0.02364871]
[1741965317385,0.248459,84521.0,84516.0,0.26028871]
[1741965317591,0.0001697,84527.0,84516.0,0.02364871]
[1741965317787,0.23663,84520.0,84516.0,0.02364871]
[1741965317988,0.24846,84521.0,84517.0,0.236638]
[1741965318200,0.236959,84524.0,84517.0,0.236638]
[1741965318404,0.000339,84524.0,84518.0,0.236635]
[1741965318788,0.23696,84524.0,84520.0,0.236627]
[1741965318988,0.236958,84524.0,84521.0,0.236626]
[1741965319186,0.011831,84522.0,84520.0,0.01448057]
[1741965319431,0.248461,84520.0,84516.0,0.02364871]
[1741965319753,0.236625,84522.0,84516.0,0.26028871]
[1741965320164,0.23663,84520.0,84517.0,0.236636]
[1741965320366,0.011831,84523.0,84516.0,0.03764296]
[1741965320565,0.000339,84524.0,84516.0,0.03764296]
[1741965320772,0.000339,84524.0,84516.0,0.02364871]
[1741965320894,0.236631,84520.0,84516.0,0.02364871]
[1741965321095,0.236634,84519.0,84516.0,0.02364871]
[1741965321299,0.236636,84518.0,84516.0,0.02364871]
[1741965321529,0.236636,84518.0,84497.0,0.236694]
[1741965321530,0.011833,84504.0,84497.0,0.236694]
[1741965321702,0.236675,84504.0,84500.0,0.00012382]
[1741965321896,0.236667,84507.0,84503.0,0.02335695]
[1741965322099,0.236668,84507.0,84503.0,0.02335695]
[1741965322342,0.248501,84507.0,84503.0,0.02335695]
[1741965322608,0.236668,84507.0,84504.0,0.236674]
[1741965322808,0.248491,84510.0,84503.0,0.02335695]
[1741965322809,0.24849,84510.0,84503.0,0.02335695]
[1741965323028,0.248495,84509.0,84504.0,0.388555]
[1741965323228,0.011833,84506.0,84504.0,0.15188]
[1741965323428,0.236653,84512.0,84506.0,0.236667]
[1741965323640,0.236658,84511.0,84506.0,0.236667]
[1741965323830,0.236658,84511.0,84504.0,0.15188]
[1741965323831,0.236671,84506.0,84504.0,0.15188]
[1741965324078,0.011832,84511.0,84506.0,0.236668]
[1741965324236,0.236662,84509.0,84505.0,0.236666]
[1741965324516,0.236661,84509.0,84505.0,0.236666]
[1741965324685,0.236658,84510.0,84506.0,0.236667]
[1741965324907,0.236669,84507.0,84504.0,0.15188]